bitfinex/quotes_SOLUSD_20241013
["timestamp","ask_amount","ask_price","bid_price","bid_amount"]
[1728806411791,0.6109002,146.69,146.62,16.3919]
[1728806411792,0.6109002,146.69,146.63,20.0]
[1728806412005,0.6109002,146.69,146.65,20.0]
[1728806415086,0.6109002,146.69,146.67,20.0]
[1728806415297,0.6109002,146.69,146.68,1.36330533]
[1728806415508,0.6109002,146.69,146.67,31.40198005]
[1728806417095,0.6109002,146.69,146.68,1.36331997]
[1728806418485,0.6109002,146.69,146.68,12.76530002]
[1728806418686,0.6109002,146.69,146.68,31.40198005]
[1728806420210,0.6109002,146.69,146.68,20.0]
[1728806423213,22.7822,146.74,146.68,20.0]
[1728806424609,6.8153,146.73,146.68,20.0]
[1728806424790,6.8157,146.72,146.67,20.0]
[1728806425718,6.8157,146.72,146.66,11.40198005]
[1728806426014,6.8157,146.72,146.67,20.0]
[1728806426387,6.8154,146.73,146.67,20.0]
[1728806435618,22.7822,146.74,146.67,20.0]
[1728806435818,29.5971,146.74,146.68,1.3633045]
[1728806436203,29.5971,146.74,146.67,20.0]
[1728806436917,29.5971,146.74,146.68,11.40198005]
[1728806437099,29.5971,146.74,146.69,1.36321723]
[1728806437812,6.8153,146.73,146.68,11.40198005]
[1728806444334,6.8153,146.73,146.69,20.0]
[1728806449332,22.7822,146.74,146.69,20.0]
[1728806449507,16.5332,146.77,146.69,20.0]
[1728806449707,16.5332,146.77,146.69,31.40198005]
[1728806450529,6.8144,146.75,146.69,31.40198005]
[1728806452940,30.590784,146.76,146.69,31.40198005]
[1728806454537,6.8139,146.76,146.7,11.40198005]
[1728806454837,6.8143,146.75,146.71,20.0]
[1728806455707,16.5332,146.77,146.71,20.0]
[1728806455913,23.3467,146.77,146.72,12.76494078]
[1728806456138,23.3467,146.77,146.73,20.0]
[1728806460539,37.63945162,146.83,146.74,1.36290694]
[1728806460722,6.8126,146.79,146.73,31.40198005]
[1728806461132,6.8126,146.79,146.74,1.36274596]
[1728806462027,6.8126,146.79,146.74,12.76472601]
[1728806462228,6.8126,146.79,146.75,20.0]
[1728806466129,6.8121,146.8,146.76,1.36267342]
[1728806466337,6.8121,146.8,146.75,31.40198005]
[1728806469462,6.8121,146.8,146.76,12.76459511]
[1728806469670,6.8121,146.8,146.76,11.40198005]
[1728806470367,6.8121,146.8,146.75,11.40198005]
[1728806473269,6.8124,146.79,146.75,11.40198005]
[1728806473567,6.8121,146.8,146.75,11.40198005]
[1728806475155,6.8121,146.8,146.74,11.40198005]
[1728806475355,6.8121,146.8,146.75,20.0]
[1728806477976,6.8124,146.79,146.73,11.40198005]
[1728806478353,6.8124,146.79,146.74,20.0]
[1728806484552,23.776884,146.81,146.71,20.0]
[1728806484750,23.776884,146.81,146.71,31.40198005]
[1728806484751,6.8134,146.77,146.71,31.40198005]
[1728806484975,6.8134,146.77,146.71,20.0]
[1728806485176,6.8134,146.77,146.71,11.40198005]
[1728806485479,6.814,146.76,146.7,11.40198005]
[1728806485676,6.8143,146.75,146.66,24.24013316]
[1728806485978,15.37,146.77,146.68,11.40198005]
[1728806485979,6.8152,146.73,146.68,11.40198005]
[1728806486952,6.8152,146.73,146.66,15.4865]
[1728806487153,6.8152,146.73,146.68,20.0]
[1728806488059,6.8152,146.73,146.64,20.0]
[1728806488275,6.8152,146.73,146.68,20.0]
[1728806489479,6.8157,146.72,146.64,20.0]
[1728806489646,6.8157,146.72,146.67,20.0]
[1728806491368,22.9885,146.72,146.65,20.0]
[1728806491553,22.9885,146.72,146.66,20.0]
[1728806494798,16.1728,146.72,146.66,20.0]
[1728806494973,6.8162,146.71,146.64,31.40198005]
[1728806497293,6.8162,146.71,146.64,20.0]
[1728806497496,6.8169,146.7,146.64,20.0]
[1728806497679,6.8169,146.7,146.63,15.3641]
[1728806497680,6.8167,146.7,146.63,11.40198005]
[1728806497992,23.776884,146.69,146.63,11.40198005]
[1728806498174,23.776884,146.69,146.64,11.40198005]
[1728806498795,23.776884,146.69,146.65,20.0]
[1728806499473,30.594084,146.69,146.64,20.0]
[1728806499978,30.594084,146.69,146.64,11.40198005]
[1728806500279,23.776884,146.69,146.65,20.0]
[1728806500476,6.8167,146.7,146.65,20.0]
[1728806501998,16.1728,146.72,146.65,31.40198005]
[1728806502198,6.1817,146.74,146.69,11.40198005]
[1728806502403,6.1817,146.74,146.7,11.40198005]
[1728806502702,6.1817,146.74,146.69,11.40198005]
[1728806502911,6.1817,146.74,146.7,20.0]
[1728806503202,6.1817,146.74,146.69,11.40198005]
[1728806503410,6.1817,146.74,146.7,20.0]
[1728806504301,6.1817,146.74,146.69,20.0]
[1728806504478,12.9965,146.74,146.69,20.0]
[1728806504828,30.592284,146.73,146.68,20.0]
[1728806505112,30.592284,146.73,146.66,11.40198005]
[1728806505288,30.592284,146.73,146.67,20.0]
[1728806505808,30.592284,146.73,146.67,31.40198005]
[1728806508099,12.9965,146.74,146.69,20.0]
[1728806511805,23.776884,146.73,146.64,20.0]
[1728806512022,30.592384,146.73,146.66,11.40198005]
[1728806512423,30.592384,146.73,146.67,20.0]
[1728806512723,23.776884,146.73,146.67,20.0]
[1728806512909,6.8158,146.72,146.67,20.0]
[1728806514995,23.776884,146.73,146.67,20.0]
[1728806515196,30.592184,146.73,146.68,20.0]
[1728806520217,30.592184,146.73,146.66,11.40198005]
[1728806520519,30.592184,146.73,146.67,20.0]
[1728806521219,23.776884,146.73,146.67,20.0]
[1728806521517,6.8157,146.72,146.67,20.0]
[1728806523425,30.592384,146.73,146.67,21.36346373]
[1728806523641,30.592384,146.73,146.67,12.76544378]
[1728806523805,30.592384,146.73,146.68,20.0]
[1728806528637,30.592384,146.73,146.68,21.36339691]
[1728806529811,6.1817,146.74,146.68,21.36339691]
[1728806530143,12.9969,146.74,146.68,20.0]
[1728806530835,6.8152,146.74,146.68,21.3632085]
[1728806531031,6.8152,146.74,146.68,20.0]
[1728806532735,6.8152,146.74,146.69,1.36321448]
[1728806532923,22.9872,146.75,146.69,24.81069427]
[1728806533120,22.9872,146.75,146.69,21.36321448]
[1728806533437,22.9872,146.75,146.69,20.0]
[1728806533929,16.1728,146.75,146.69,20.0]
[1728806534143,6.815,146.74,146.69,20.0]
[1728806534337,6.815,146.74,146.68,20.0]
[1728806534645,6.815,146.74,146.69,3.44788765]
[1728806534856,6.815,146.74,146.68,20.0]
[1728806535136,6.815,146.74,146.69,3.44788765]
[1728806535307,6.815,146.74,146.68,20.0]
[1728806535511,6.8153,146.73,146.69,3.44807839]
[1728806536138,6.8153,146.73,146.68,20.0]
[1728806536436,6.8153,146.73,146.69,3.44803557]
[1728806536743,6.8153,146.73,146.68,20.0]
[1728806536947,6.8153,146.73,146.69,3.44804974]
[1728806539052,6.8153,146.73,146.67,3.44804974]
[1728806539250,6.8153,146.73,146.68,3.44804974]
[1728806539452,6.8157,146.72,146.66,20.0]
[1728806539652,6.8157,146.72,146.67,3.4479271]
[1728806539853,6.8157,146.72,146.68,3.4479271]
[1728806540051,6.8157,146.72,146.66,20.0]
[1728806540429,6.8157,146.72,146.67,3.44791576]
[1728806541359,6.8157,146.72,146.68,3.44791576]
[1728806541945,6.8157,146.72,146.66,20.0]
[1728806542255,6.8157,146.72,146.67,3.4478375]
[1728806542432,6.8157,146.72,146.68,3.4478375]
[1728806542629,6.8157,146.72,146.66,20.0]
[1728806542839,6.8157,146.72,146.67,3.44777967]
[1728806543164,6.8157,146.72,146.68,3.44777967]
[1728806543333,6.8157,146.72,146.66,20.0]
[1728806543528,6.8157,146.72,146.67,3.44773944]
[1728806543730,6.8157,146.72,146.68,3.44773944]
[1728806543941,6.8157,146.72,146.66,20.0]
[1728806544156,6.8157,146.72,146.67,3.44772721]
[1728806544360,6.8157,146.72,146.68,3.44772721]
[1728806544558,6.8157,146.72,146.66,20.0]
[1728806544759,6.8157,146.72,146.67,3.44819591]
[1728806544951,6.8157,146.72,146.68,3.44819591]
[1728806545155,6.8157,146.72,146.66,20.0]
[1728806545334,6.8157,146.72,146.67,3.44887169]
[1728806545535,6.8157,146.72,146.68,3.44887169]
[1728806545829,6.8157,146.72,146.69,3.44887169]
[1728806546030,6.8157,146.72,146.66,20.0]
[1728806546255,6.8157,146.72,146.67,3.44989069]
[1728806546453,6.8157,146.72,146.68,3.44989069]
[1728806546760,6.8157,146.72,146.69,3.44989069]
[1728806546967,6.8157,146.72,146.66,20.0]
[1728806547140,6.8157,146.72,146.67,3.44980078]
[1728806547340,6.8157,146.72,146.68,3.44980078]
[1728806547549,6.8157,146.72,146.69,3.44980078]
[1728806547746,6.8157,146.72,146.66,20.0]
[1728806547954,6.8157,146.72,146.67,3.45098174]
[1728806548154,6.8157,146.72,146.68,3.45098174]
[1728806548457,23.776884,146.74,146.68,3.45098174]
[1728806548458,23.776884,146.74,146.69,3.45098174]
[1728806548640,30.591984,146.74,146.68,11.40198005]
[1728806548840,30.591984,146.74,146.69,3.45100495]
[1728806549041,30.591984,146.74,146.68,11.40198005]
[1728806549242,30.591984,146.74,146.69,3.45100417]
[1728806549547,30.591984,146.74,146.68,11.40198005]
[1728806549740,30.591984,146.74,146.69,3.45099943]
[1728806549939,30.591984,146.74,146.68,11.40198005]
[1728806550157,30.591984,146.74,146.69,3.45099943]
[1728806550332,30.591984,146.74,146.68,11.40198005]
[1728806550537,30.591984,146.74,146.69,3.45098855]
[1728806550736,30.591984,146.74,146.68,11.40198005]
[1728806550939,30.591984,146.74,146.69,3.45098855]
[1728806551239,30.591984,146.74,146.68,21.36330496]
[1728806551440,30.591984,146.74,146.69,3.45098304]
[1728806551657,30.591984,146.74,146.68,21.36330496]
[1728806551973,30.591984,146.74,146.69,3.45088849]
[1728806552159,30.591984,146.74,146.68,21.36330496]
[1728806552339,30.591984,146.74,146.69,3.45085386]
[1728806552635,30.591984,146.74,146.68,21.36330496]
[1728806552868,30.591984,146.74,146.69,3.45085386]
[1728806553159,30.591984,146.74,146.68,20.0]
[1728806553360,30.591984,146.74,146.69,3.45084963]
[1728806553564,30.591984,146.74,146.68,20.0]
[1728806554244,30.591984,146.74,146.68,21.36329729]
[1728806554948,30.591984,146.74,146.68,20.0]
[1728806555446,30.591984,146.74,146.68,21.36329639]
[1728806558565,23.776884,146.74,146.68,21.36329639]
[1728806558765,6.8152,146.73,146.68,21.36329639]
[1728806560553,6.8152,146.73,146.68,1.36329639]
[1728806561544,6.8157,146.72,146.67,20.0]
[1728806561770,6.8157,146.72,146.66,20.0]
[1728806562553,6.8157,146.72,146.67,1.36335356]
[1728806562758,6.8157,146.72,146.67,21.36335356]
[1728806563852,6.8157,146.72,146.67,1.36335356]
[1728806564048,6.8157,146.72,146.67,21.36335356]
[1728806568963,6.8157,146.72,146.67,20.0]
[1728806570274,6.8157,146.72,146.67,21.36337068]
[1728806570450,6.8157,146.72,146.67,20.0]
[1728806580985,6.8157,146.72,146.67,21.36338346]
[1728806581678,6.8157,146.72,146.67,12.76536351]
[1728806581990,6.8157,146.72,146.68,21.36334943]
[1728806582287,6.8157,146.72,146.68,20.0]
[1728806582685,6.8157,146.72,146.68,21.36334985]
[1728806582988,6.8157,146.72,146.68,20.0]
[1728806583293,6.8154,146.73,146.68,1.3633747]
[1728806585895,6.8154,146.73,146.67,20.0]
[1728806586197,6.8154,146.73,146.67,21.36337075]
[1728806593609,6.8149,146.74,146.68,11.40198005]
[1728806593775,6.8149,146.74,146.69,1.36318786]
[1728806595104,16.1728,146.75,146.69,1.36318786]
[1728806595303,22.9871,146.75,146.69,1.36318786]
[1728806595804,22.9871,146.75,146.69,20.0]
[1728806595805,22.9872,146.75,146.69,20.0]
[1728806597007,22.9872,146.75,146.64,20.0]
[1728806597008,6.8163,146.71,146.64,20.0]
[1728806597207,6.816,146.72,146.64,31.40198005]
[1728806597684,33.2088,146.75,146.64,31.40198005]
[1728806597892,6.8153,146.73,146.65,1.36332176]
[1728806598504,6.8153,146.73,146.65,12.76530181]
[1728806598814,6.8153,146.73,146.66,20.0]
[1728806599800,6.8153,146.73,146.67,1.36333135]
[1728806600816,6.8153,146.73,146.67,21.36333135]
[1728806610913,6.8148,146.74,146.68,11.40198005]
[1728806611221,22.9872,146.75,146.69,21.36318624]
[1728806611424,16.1728,146.75,146.69,21.36318624]
[1728806612227,16.1728,146.75,146.69,32.76516629]
[1728806612534,6.4076,146.77,146.72,11.40198005]
[1728806612714,19.41495162,146.79,146.67,16.3123]
[1728806612715,15.8298,146.79,146.74,11.40198005]
[1728806613022,15.8298,146.79,146.75,20.0]
[1728806613935,15.8298,146.79,146.73,11.40198005]
[1728806614316,15.8298,146.79,146.74,20.0]
[1728806616633,15.8298,146.79,146.75,1.36277536]
[1728806616840,15.8298,146.79,146.74,20.0]
[1728806622613,22.6423,146.79,146.72,11.40198005]
[1728806622815,6.8129,146.78,146.73,20.0]
[1728806623842,15.8298,146.79,146.73,20.0]
[1728806624141,22.6424,146.79,146.73,20.0]
[1728806627744,22.6424,146.79,146.74,20.0]
[1728806636255,22.6424,146.79,146.74,31.40198005]
[1728806636459,22.6424,146.79,146.75,20.0]
[1728806637974,15.8298,146.79,146.75,20.0]
[1728806638182,6.8121,146.8,146.75,20.0]
[1728806639156,6.8121,146.8,146.75,21.36266746]
[1728806640064,6.8121,146.8,146.75,20.0]
[1728806642858,6.8125,146.79,146.72,20.0]
[1728806643093,6.8125,146.79,146.73,3.44175704]
[1728806645769,6.8125,146.79,146.72,31.40198005]
[1728806646273,6.8125,146.79,146.73,3.44218754]
[1728806648781,6.8125,146.79,146.73,3.44235083]
[1728806650092,21.5225,146.82,146.73,3.44235083]
[1728806650299,23.776884,146.81,146.73,3.44235083]
[1728806650483,6.2551,146.78,146.69,11.40198005]
[1728806650683,6.2551,146.78,146.7,3.44409716]
[1728806650893,6.8139,146.76,146.71,3.44409716]
[1728806651095,6.8139,146.76,146.7,3.44409716]
[1728806651273,6.8139,146.76,146.71,3.44409716]
[1728806651579,6.8139,146.76,146.7,3.44409716]
[1728806651901,6.8137,146.77,146.71,23.44409716]
[1728806652078,6.8137,146.77,146.71,20.0]
[1728806652583,6.8137,146.77,146.72,23.44561413]
[1728806652783,6.8137,146.77,146.72,20.0]
[1728806653496,6.8137,146.77,146.71,20.0]
[1728806653685,6.8137,146.77,146.72,3.44627573]
[1728806654070,6.2551,146.78,146.72,3.44627573]
[1728806654071,6.8138,146.76,146.72,3.44627573]
[1728806655023,6.2551,146.78,146.72,3.44627573]
[1728806655298,6.8134,146.77,146.72,3.44627573]
[1728806656194,6.8134,146.77,146.71,20.0]
[1728806656388,6.8134,146.77,146.72,3.44935679]
[1728806656594,6.8134,146.77,146.71,20.0]
[1728806656789,6.8134,146.77,146.72,3.44935757]
[1728806656996,6.8134,146.77,146.71,20.0]
[1728806657299,6.8134,146.77,146.72,3.44945345]
[1728806657498,6.8134,146.77,146.73,3.44945345]
[1728806657673,6.8134,146.77,146.71,20.0]
[1728806657870,6.8134,146.77,146.72,3.45068874]
[1728806658096,6.8134,146.77,146.73,3.45068874]
[1728806658402,6.8134,146.77,146.71,20.0]
[1728806658706,6.8134,146.77,146.72,3.45240011]
[1728806658910,6.8134,146.77,146.73,3.45240011]
[1728806659115,6.8134,146.77,146.71,20.0]
[1728806659412,6.8134,146.77,146.72,3.4523844]
[1728806659708,6.8134,146.77,146.73,3.45237876]
[1728806659889,6.8134,146.77,146.71,20.0]
[1728806660289,6.8134,146.77,146.72,3.45238114]
[1728806660587,6.8134,146.77,146.73,3.45238114]
[1728806660787,6.8134,146.77,146.71,20.0]
[1728806660990,6.8134,146.77,146.72,3.45229388]
[1728806661202,6.8134,146.77,146.73,3.45229388]
[1728806661406,6.8134,146.77,146.71,20.0]
[1728806661605,6.8134,146.77,146.72,3.45233676]
[1728806661793,6.8134,146.77,146.73,3.45233676]
[1728806661999,6.8134,146.77,146.71,20.0]
[1728806662212,6.8134,146.77,146.72,3.45233113]
[1728806662411,6.8134,146.77,146.73,3.45233113]
[1728806662712,6.8134,146.77,146.71,20.0]
[1728806662921,6.8134,146.77,146.72,3.45229604]
[1728806663208,6.8134,146.77,146.73,3.45229604]
[1728806663582,6.8134,146.77,146.71,20.0]
[1728806663814,6.8134,146.77,146.72,3.45225881]
[1728806664013,6.8134,146.77,146.73,3.45225881]
[1728806664218,6.8134,146.77,146.71,20.0]
[1728806665105,6.8134,146.77,146.72,3.45220687]
[1728806665521,6.8134,146.77,146.73,3.45220687]
[1728806666412,6.8134,146.77,146.71,20.0]
[1728806667607,6.8134,146.77,146.72,3.45148834]
[1728806669515,6.8134,146.77,146.73,23.45138359]
[1728806669713,6.8134,146.77,146.71,20.0]
[1728806672204,6.2551,146.78,146.71,20.0]
[1728806672400,13.0681,146.78,146.71,20.0]
[1728806672904,13.0681,146.78,146.72,3.45125808]
[1728806673229,13.0681,146.78,146.73,3.45125808]
[1728806673407,13.0681,146.78,146.74,3.45125808]
[1728806673605,13.0681,146.78,146.71,20.0]
[1728806673802,13.0681,146.78,146.72,3.45136801]
[1728806674009,13.0681,146.78,146.73,3.45136801]
[1728806674212,13.0681,146.78,146.74,3.45136801]
[1728806674409,13.0681,146.78,146.71,20.0]
[1728806674726,13.0681,146.78,146.72,3.45108906]
[1728806674932,13.0681,146.78,146.73,3.45108906]
[1728806675225,13.0681,146.78,146.74,3.45108906]
[1728806675523,13.0681,146.78,146.71,20.0]
[1728806675710,13.0681,146.78,146.72,3.45140297]
[1728806676008,13.0681,146.78,146.73,3.45140297]
[1728806676209,13.0681,146.78,146.74,3.45140297]
[1728806676416,13.0681,146.78,146.71,20.0]
[1728806676617,13.0681,146.78,146.72,3.45136069]
[1728806676817,13.0681,146.78,146.73,3.45136069]
[1728806677009,13.0681,146.78,146.74,3.45136069]
[1728806677211,6.2551,146.78,146.71,20.0]
[1728806677539,6.8134,146.77,146.72,3.45137052]
[1728806677702,6.8134,146.77,146.73,3.45137052]
[1728806677905,6.8134,146.77,146.74,3.45137052]
[1728806678095,6.8134,146.77,146.71,20.0]
[1728806678308,6.8134,146.77,146.72,3.45136986]
[1728806678628,6.8134,146.77,146.73,3.45136986]
[1728806678805,6.8134,146.77,146.74,3.45136986]
[1728806679002,6.8134,146.77,146.71,20.0]
[1728806679321,6.8134,146.77,146.72,3.45134017]
[1728806679519,6.8134,146.77,146.73,3.45134017]
[1728806679710,6.8134,146.77,146.74,3.45134017]
[1728806679910,6.8134,146.77,146.71,20.0]
[1728806680114,6.8134,146.77,146.72,3.45147968]
[1728806680422,6.8134,146.77,146.73,3.45147968]
[1728806680629,6.8134,146.77,146.74,3.45147968]
[1728806680803,6.8134,146.77,146.71,20.0]
[1728806681006,6.8134,146.77,146.72,3.45152035]
[1728806681224,6.8134,146.77,146.73,3.45152035]
[1728806681426,6.8134,146.77,146.74,3.45152035]
[1728806681602,6.8134,146.77,146.71,20.0]
[1728806681808,6.8134,146.77,146.72,3.4521933]
[1728806682109,6.8134,146.77,146.73,3.4521933]
[1728806682424,6.8134,146.77,146.74,3.4521933]
[1728806682736,6.8134,146.77,146.71,20.0]
[1728806683030,6.8134,146.77,146.72,3.45269352]
[1728806683329,6.8134,146.77,146.71,20.0]
[1728806683330,6.8134,146.77,146.73,3.45269352]
[1728806683535,6.8134,146.77,146.74,3.45269352]
[1728806683709,6.8134,146.77,146.71,20.0]
[1728806683911,6.8134,146.77,146.72,3.45265511]
[1728806684124,6.8134,146.77,146.73,3.45265511]
[1728806684331,6.8134,146.77,146.74,3.45265511]
[1728806684503,6.8134,146.77,146.71,20.0]
[1728806684833,6.8134,146.77,146.72,3.45272545]
[1728806685040,6.8134,146.77,146.73,3.45272545]
[1728806685337,6.8134,146.77,146.74,3.45272545]
[1728806685531,6.8134,146.77,146.71,20.0]
[1728806685730,6.8134,146.77,146.72,3.45277189]
[1728806686032,6.8134,146.77,146.73,3.45277189]
[1728806686340,6.8134,146.77,146.74,3.45277189]
[1728806686509,6.8134,146.77,146.71,20.0]
[1728806686713,6.8134,146.77,146.72,3.45275254]
[1728806686904,6.8134,146.77,146.73,3.45275254]
[1728806687104,6.8134,146.77,146.74,3.45275254]
[1728806687333,6.8134,146.77,146.71,20.0]
[1728806687518,6.8134,146.77,146.72,3.45287598]
[1728806687719,6.8134,146.77,146.73,3.45287598]
[1728806687928,6.8134,146.77,146.74,3.45287598]
[1728806688234,6.8134,146.77,146.68,20.0]
[1728806688437,6.8134,146.77,146.7,20.0]
[1728806688735,6.8134,146.77,146.71,3.45300749]
[1728806688912,6.8134,146.77,146.72,3.45300749]
[1728806689111,6.8134,146.77,146.73,3.45300749]
[1728806689320,6.8134,146.77,146.74,3.45300749]
[1728806689519,6.8134,146.77,146.7,20.0]
[1728806689721,6.8134,146.77,146.71,3.45302984]
[1728806689926,6.8134,146.77,146.72,3.45302984]
[1728806690136,6.8134,146.77,146.73,3.45302984]
[1728806690321,6.8134,146.77,146.74,3.45302984]
[1728806690524,6.8134,146.77,146.7,20.0]
[1728806690721,6.8134,146.77,146.71,3.45254356]
[1728806690924,6.8134,146.77,146.72,3.45254356]
[1728806691223,6.8134,146.77,146.73,3.45254356]
[1728806691427,6.8134,146.77,146.74,3.45254356]
[1728806691627,6.8134,146.77,146.7,20.0]
[1728806691924,6.8134,146.77,146.71,3.45260972]
[1728806692442,6.8134,146.77,146.72,3.45260972]
[1728806692737,6.8134,146.77,146.73,3.45260972]
[1728806693040,6.8134,146.77,146.74,3.45260972]
[1728806693213,6.8134,146.77,146.7,20.0]
[1728806693507,6.8134,146.77,146.71,3.45189061]
[1728806693711,6.8134,146.77,146.72,3.45189061]
[1728806693940,6.8134,146.77,146.73,3.45189061]
[1728806694115,6.8134,146.77,146.74,3.45189061]
[1728806694310,6.8134,146.77,146.7,20.0]
[1728806694514,6.8134,146.77,146.71,3.45207701]
[1728806694719,6.8134,146.77,146.72,3.45207701]
[1728806694941,6.8134,146.77,146.73,3.45207701]
[1728806695114,6.8134,146.77,146.74,3.45207701]
[1728806695436,6.8134,146.77,146.7,20.0]
[1728806695646,6.8134,146.77,146.71,3.45252928]
[1728806696013,6.8134,146.77,146.72,3.45252928]
[1728806696212,6.8134,146.77,146.73,3.45252928]
[1728806696413,6.8134,146.77,146.74,3.45252928]
[1728806696613,6.8134,146.77,146.7,20.0]
[1728806696829,6.8134,146.77,146.71,3.4529045]
[1728806697037,6.8134,146.77,146.72,3.4529045]
[1728806697237,6.8134,146.77,146.73,3.4529045]
[1728806697546,6.8134,146.77,146.74,3.4529045]
[1728806697844,6.8134,146.77,146.7,20.0]
[1728806698041,6.8134,146.77,146.71,3.45284261]
[1728806698244,6.8134,146.77,146.72,3.45284261]
[1728806698420,6.8134,146.77,146.7,20.0]
[1728806698421,6.8134,146.77,146.73,3.45284261]
[1728806698620,6.8134,146.77,146.74,3.45284261]
[1728806698832,6.8134,146.77,146.7,20.0]
[1728806699145,6.8134,146.77,146.71,3.45298672]
[1728806699652,6.8134,146.77,146.72,3.45299204]
[1728806699951,6.8134,146.77,146.73,3.45299204]
[1728806700127,6.8134,146.77,146.74,3.45299204]
[1728806700330,6.8134,146.77,146.7,20.0]
[1728806700655,6.8134,146.77,146.71,3.45342056]
[1728806700865,6.8134,146.77,146.72,3.45342056]
[1728806701033,6.8134,146.77,146.73,3.45342056]
[1728806701354,6.8134,146.77,146.74,3.45342056]
[1728806701653,6.8134,146.77,146.7,20.0]
[1728806702030,6.8134,146.77,146.71,3.45356131]
[1728806702232,6.8134,146.77,146.72,3.45356131]
[1728806702436,6.8134,146.77,146.73,3.45356131]
[1728806702632,6.8134,146.77,146.74,3.45356131]
[1728806702933,6.8134,146.77,146.7,20.0]
[1728806703138,6.8134,146.77,146.71,4.81664286]
[1728806703350,6.2551,146.78,146.72,3.45368829]
[1728806703537,6.8125,146.79,146.73,4.81659642]
[1728806703744,6.8125,146.79,146.74,3.45368829]
[1728806703948,6.8125,146.79,146.75,3.45368829]
[1728806704258,6.8125,146.79,146.73,1.36290813]
[1728806704425,6.8125,146.79,146.74,3.45285249]
[1728806704626,6.8125,146.79,146.75,3.45285249]
[1728806704823,6.8125,146.79,146.72,31.40198005]
[1728806705031,6.8125,146.79,146.73,3.4528608]
[1728806705233,6.8125,146.79,146.74,3.4528608]
[1728806705436,6.8125,146.79,146.75,3.4528608]
[1728806705653,15.1008,146.8,146.72,20.0]
[1728806705823,6.813,146.78,146.73,3.45268364]
[1728806706027,15.1008,146.8,146.74,3.45268364]
[1728806706238,15.1008,146.8,146.75,3.45268364]
[1728806706239,6.8135,146.77,146.75,3.45268364]
[1728806706449,6.8129,146.78,146.71,32.76495544]
[1728806706634,6.8129,146.78,146.72,3.45166168]
[1728806706842,6.8129,146.78,146.73,3.45166168]
[1728806707049,6.8129,146.78,146.74,3.45166168]
[1728806707235,6.8125,146.79,146.75,3.45166168]
[1728806707566,6.8125,146.79,146.71,31.40198005]
[1728806707861,6.8125,146.79,146.72,3.45178344]
[1728806708154,6.8125,146.79,146.73,3.45178344]
[1728806708454,6.8125,146.79,146.74,3.45178344]
[1728806708658,6.8129,146.78,146.75,3.45178344]
[1728806708842,6.8129,146.78,146.71,31.40198005]
[1728806709046,6.8129,146.78,146.72,3.45169075]
[1728806709354,6.8129,146.78,146.73,3.45206731]
[1728806709560,6.8129,146.78,146.74,3.45206731]
[1728806709726,6.8129,146.78,146.75,3.45206731]
[1728806709930,6.8129,146.78,146.71,20.0]
[1728806710149,6.8129,146.78,146.72,3.45216057]
[1728806710334,6.8129,146.78,146.73,3.45216057]
[1728806710543,6.8129,146.78,146.74,3.45216057]
[1728806710746,6.8129,146.78,146.75,3.45216057]
[1728806710940,6.8129,146.78,146.71,20.0]
[1728806711140,6.8129,146.78,146.72,3.45195431]
[1728806711345,6.8129,146.78,146.73,3.45195431]
[1728806711547,6.8129,146.78,146.74,3.45195431]
[1728806711842,6.8129,146.78,146.75,3.45195431]
[1728806712044,6.8129,146.78,146.71,20.0]
[1728806712342,6.8134,146.77,146.72,3.45172983]
[1728806712554,6.8134,146.77,146.73,3.45172983]
[1728806712757,6.8134,146.77,146.74,3.45172983]
[1728806713065,6.8134,146.77,146.71,20.0]
[1728806713266,6.8134,146.77,146.72,4.81534435]
[1728806713459,6.8134,146.77,146.73,3.45238883]
[1728806713662,6.8134,146.77,146.74,3.45238883]